fUSD/lending_fUSD_20251002
["ID","MTS","AMOUNT","RATE_DAILY","PERIOD"]
[388835145,1759409263216,-151.0,0.00020792,2]
[388835146,1759409263244,-135.61286242,0.00020792,2]
[388835147,1759409263912,-364.38713758,0.00020792,2]
[388835166,1759409275097,-1052.45,0.00020493,2]
[388835167,1759409275124,-151.0,0.00020792,2]
[388835168,1759409275151,-500.0,0.00020792,2]
[388835169,1759409275178,-151.0,0.00020792,2]
[388835171,1759409275205,-289.68620485,0.00020792,2]
[388835172,1759409275231,-151.0,0.00020792,2]
[388835173,1759409275257,-200.0,0.00020792,2]
[388835174,1759409275284,-151.0,0.00020792,2]
[388835175,1759409275312,-151.0,0.00020792,2]
[388835176,1759409275340,-151.0,0.00020792,2]
[388835178,1759409275369,-151.0,0.00020792,2]
[388835179,1759409275396,-151.0,0.00020792,2]
[388835180,1759409275427,-336.15973518,0.00020792,2]
[388835181,1759409275458,-151.0,0.00020792,2]
[388835182,1759409275487,-151.0,0.00020792,2]
[388835183,1759409275518,-151.0,0.00020792,2]
[388835184,1759409275552,-151.0,0.00020792,2]
[388835185,1759409275583,-151.0,0.00020792,2]
[388835186,1759409275612,-151.0,0.00020792,2]
[388835187,1759409275649,-151.0,0.00020792,2]
[388835188,1759409275679,-151.0,0.00020792,2]
[388835189,1759409275707,-151.0,0.00020792,2]
[388835190,1759409275736,-200.0,0.00020792,2]
[388835191,1759409275765,-150.0,0.00020796,4]
[388835192,1759409275794,-150.0,0.00020796,4]
[388835193,1759409275821,-150.0,0.00020796,4]
[388835194,1759409275848,-150.0,0.00020796,4]
[388835195,1759409275881,-150.0,0.00020796,4]
[388835196,1759409275909,-150.0,0.00020796,4]
[388835197,1759409275937,-150.0,0.00020796,4]
[388835198,1759409275963,-150.0,0.00020796,4]
[388835199,1759409275990,-150.0,0.00020796,4]
[388835200,1759409277965,-240.34895804,0.00020797,2]
[388835271,1759409432255,-1740.33,0.0002051,2]
[388835272,1759409432264,-150.0,0.00020523,2]
[388835273,1759409432274,-300.0,0.0002075,2]
[388835274,1759409432283,-1200.0,0.0002075,2]
[388835275,1759409432292,-3078.31451849,0.00020751,2]
[388835276,1759409432303,-22644.45248831,0.00020751,2]
[388835277,1759409432312,-185.427615,0.00020797,2]
[388835278,1759409432322,-6290.92,0.00020805,2]
[388835279,1759409432331,-350.0,0.00020805,2]
[388835280,1759409432340,-322.6107,0.00020806,2]
[388835281,1759409432350,-7965.41053268,0.00020806,2]
[388835282,1759409432360,-187.78006524,0.00020806,2]
[388835283,1759409432369,-500.0,0.00020806,2]
[388835284,1759409432378,-500.0,0.00020806,2]
[388835285,1759409432387,-500.0,0.00020806,2]
[388835286,1759409432397,-500.0,0.00020806,2]
[388835287,1759409432406,-250.0,0.00020806,2]
[388835288,1759409432416,-500.0,0.00020806,2]
[388835289,1759409432425,-500.0,0.00020806,2]
[388835290,1759409432434,-532.74291346,0.00020806,2]
[388835291,1759409432443,-500.0,0.00020806,2]
[388835292,1759409432452,-1000.0,0.00020806,2]
[388835293,1759409432462,-980.46497709,0.00020806,2]
[388835294,1759409432471,-200.0,0.00020806,2]
[388835295,1759409432481,-200.0,0.00020806,2]
[388835296,1759409432490,-733.97394496,0.00020806,2]
[388835297,1759409432505,-41.99503595,0.00020806,2]
[388835298,1759409432515,-151.0,0.00020806,2]
[388835299,1759409432524,-200.0,0.00020806,2]
[388835300,1759409432536,-500.0,0.00020806,2]
[388835301,1759409432548,-200.0,0.00020806,2]
[388835302,1759409432557,-500.0,0.00020806,2]
[388835303,1759409432567,-500.0,0.00020806,2]
[388835304,1759409432578,-500.0,0.00020806,2]
[388835305,1759409432587,-500.0,0.00020806,2]
[388835306,1759409432597,-500.0,0.00020806,2]
[388835307,1759409432606,-500.0,0.00020806,2]
[388835308,1759409432615,-2089.48787211,0.00020806,2]
[388835309,1759409432624,-500.0,0.00020806,2]
[388835310,1759409432634,-500.0,0.00020806,2]
[388835312,1759409432642,-500.0,0.00020806,2]
[388835313,1759409432652,-500.0,0.00020806,2]
[388835314,1759409432661,-500.0,0.00020806,2]
[388835315,1759409432675,-500.0,0.00020806,2]
[388835316,1759409432686,-14.58305353,0.00020822,2]
[388835317,1759409432695,-167.91638687,0.00020822,2]
[388835318,1759409432705,-240.33,0.00020854,2]
[388835319,1759409432714,-230.06,0.0002087,2]
[388835320,1759409432724,-1283.87,0.000209,2]
[388835322,1759409432734,-1283.87,0.000209,2]
[388835323,1759409432744,-213.28,0.000209,2]
[388835325,1759409432753,-3470.99,0.00020942,2]
[388835326,1759409432764,-2265.25,0.00020983,2]
[388835327,1759409432773,-167.91638687,0.00021014,2]
[388835328,1759409432782,-150.0,0.00021015,4]
[388835329,1759409432792,-150.0,0.00021015,4]
[388835330,1759409432802,-176.5,0.00021022,2]
[388835331,1759409432812,-164.58305353,0.00021068,2]
[388835332,1759409432822,-150.0,0.0002107,4]
[388835333,1759409432831,-150.0,0.0002107,4]
[388835334,1759409432845,-150.0,0.0002107,4]
[388835335,1759409432855,-150.0,0.00021161,4]
[388835336,1759409432864,-150.0,0.00021161,4]
[388835337,1759409432873,-150.0,0.00021161,4]
[388835338,1759409432884,-152.0,0.00021165,3]
[388835339,1759409432893,-167.91638687,0.00021205,2]
[388835340,1759409432902,-181.67,0.00021214,2]
[388835341,1759409432912,-996.31542496,0.00021259,2]
[388835342,1759409432921,-164.58305353,0.00021288,2]
[388835343,1759409432930,-1283.87,0.000213,2]
[388835344,1759409432939,-225.02,0.000213,2]
[388835345,1759409432948,-200.0,0.0002134,2]
[388835346,1759409432956,-150.0,0.00021343,4]
[388835347,1759409432965,-150.0,0.00021343,4]
[388835348,1759409432975,-150.0,0.00021343,4]
[388835349,1759409432984,-150.0,0.00021343,4]
[388835350,1759409432993,-150.0,0.00021343,4]
[388835351,1759409433002,-151.0,0.00021354,2]
[388835352,1759409433011,-167.91638687,0.00021397,2]
[388835353,1759409433019,-400.0,0.000214,7]
[388835354,1759409433028,-2000.0,0.000214,2]
[388835355,1759409433038,-150.0,0.00021453,4]
[388835356,1759409433047,-150.0,0.00021453,4]
[388835357,1759409433057,-800.0,0.000215,7]
[388835358,1759409433066,-150.0,0.00021526,4]
[388835359,1759409433076,-150.0,0.00021526,4]
[388835360,1759409433086,-6517.8671164,0.00021531,2]
[388835361,1759409433095,-1110.9478186,0.00021533,2]
[388835362,1759409433104,-301.20538946,0.00021534,2]
[388835363,1759409433113,-164.58305353,0.00021534,2]
[388835364,1759409433123,-798.76422379,0.00021543,2]
[388835365,1759409433131,-167.91638687,0.00021562,2]
[388835366,1759409433140,-798.76422379,0.00021563,2]
[388835367,1759409433150,-798.76422379,0.00021566,2]
[388835368,1759409433160,-301.20538946,0.00021571,2]
[388835369,1759409433169,-1110.9478186,0.00021576,2]
[388835370,1759409433178,-301.20538946,0.00021589,2]
[388835371,1759409433188,-6517.8671164,0.00021593,2]
[388835372,1759409433198,-6517.8671164,0.00021595,2]
[388835373,1759409433207,-1110.9478186,0.00021596,2]
[388835374,1759409433217,-1200.0,0.000216,7]
[388835375,1759409433226,-798.76422379,0.00021617,2]
[388835376,1759409433235,-150.0,0.00021617,4]
[388835377,1759409433244,-150.0,0.00021617,4]
[388835378,1759409433253,-150.0,0.00021617,4]
[388835379,1759409433263,-798.76422379,0.00021619,2]
[388835380,1759409433272,-1651.35542619,0.00021622,2]
[388835381,1759409433284,-1681.41434328,0.00021622,2]
[388835382,1759409433295,-3185.09734693,0.00021622,2]
[388835383,1759409433304,-301.20538946,0.0002163,2]
[388835384,1759409433314,-301.20538946,0.00021639,2]
[388835385,1759409433323,-1110.9478186,0.00021659,2]
[388835386,1759409433332,-1110.9478186,0.00021686,2]
[388835387,1759409433340,-1779.174,0.0002169,2]
[388835388,1759409433349,-6517.8671164,0.00021693,2]
[388835389,1759409433358,-1600.0,0.000217,7]
[388835390,1759409433367,-366.01438,0.000217,2]
[388835391,1759409433377,-1165.0,0.00021727,2]
[388835392,1759409433386,-164.58305353,0.00021753,2]
[388835393,1759409433395,-167.91638687,0.00021753,2]
[388835394,1759409433404,-2500.0,0.00021772,2]
[388835395,1759409433413,-2000.0,0.000218,7]
[388835396,1759409433422,-150.0,0.000218,2]
[388835397,1759409433431,-19272.59888657,0.00021816,2]
[388835398,1759409433440,-5000.0,0.00021816,2]
[388835399,1759409433449,-360.6415,0.00021817,2]
[388835400,1759409433458,-1000.0,0.00021817,2]
[388835401,1759409433468,-6877.40464792,0.00021817,2]
[388835402,1759409433478,-163.16379402,0.00021817,2]
[388835403,1759409433488,-553.11705733,0.00021817,2]
[388835404,1759409433504,-339.89317105,0.00021817,2]
[388835405,1759409433513,-23032.07914358,0.00021817,2]
[388835406,1759409433522,-963.15159854,0.00021817,2]
[388835407,1759409433532,-205.24159121,0.00021817,2]
[388835408,1759409433542,-418.56504415,0.00021817,2]
[388835409,1759409433551,-2645.78168404,0.00021817,2]
[388835410,1759409433562,-152.0,0.00021818,4]
[388835411,1759409433574,-4639.59765131,0.00021825,2]
[388835412,1759409433583,-490.24836004,0.00021846,2]
[388835413,1759409433592,-169.80673951,0.00021846,2]
[388835414,1759409433601,-500.0,0.00021846,2]
[388835415,1759409433611,-420.19486485,0.00021846,2]
[388835416,1759409433621,-500.0,0.00021846,2]
[388835417,1759409433632,-260.80371021,0.00021846,2]
[388835418,1759409433641,-500.0,0.00021846,2]
[388835419,1759409433651,-500.0,0.00021846,2]
[388835420,1759409433661,-500.0,0.00021846,2]
[388835421,1759409433670,-500.0,0.00021846,2]
[388835422,1759409433680,-500.0,0.00021846,2]
[388835423,1759409433689,-500.0,0.00021846,2]
[388835424,1759409433699,-500.0,0.00021846,2]
[388835425,1759409433710,-500.0,0.00021846,2]
[388835426,1759409433719,-500.0,0.00021846,2]
[388835427,1759409433728,-500.0,0.00021846,2]
[388835428,1759409433737,-500.0,0.00021846,2]
[388835429,1759409433747,-500.0,0.00021846,2]
[388835430,1759409433756,-531.16029139,0.00021846,2]
[388835431,1759409433765,-500.0,0.00021846,2]
[388835432,1759409433774,-500.0,0.00021846,2]
[388835433,1759409433784,-500.0,0.00021846,2]
[388835434,1759409433793,-500.0,0.00021846,2]
[388835435,1759409433802,-500.0,0.00021846,2]
[388835436,1759409433811,-500.0,0.00021846,2]
[388835437,1759409433820,-251.20041223,0.00021846,2]
[388835438,1759409433829,-500.0,0.00021846,2]
[388835439,1759409433838,-500.0,0.00021846,2]
[388835440,1759409433847,-500.0,0.00021846,2]
[388835441,1759409433857,-500.0,0.00021846,2]
[388835442,1759409433866,-500.0,0.00021846,2]
[388835443,1759409433875,-500.0,0.00021846,2]
[388835444,1759409433885,-500.0,0.00021846,2]
[388835445,1759409433894,-500.0,0.00021846,2]
[388835446,1759409433905,-19272.5988865,0.00021847,2]
[388835447,1759409433916,-23032.07914356,0.00021847,2]
[388835448,1759409433927,-19272.5988865,0.00021877,2]
[388835449,1759409433937,-23032.07914356,0.00021878,2]
[388835450,1759409433948,-200.0,0.00021888,2]
[388835451,1759409433958,-126282.55521408,0.0002189,4]
[388835452,1759409433984,-3707.1500239,0.0002189,4]
[388835453,1759409433997,-123231.68310586,0.0002189,4]
[388835454,1759409434008,-22100.40297334,0.0002189,4]
[388835455,1759409434020,-38697.12661566,0.0002189,4]
[388835456,1759409434065,-1204.2798,0.0002189,4]
[388835457,1759409434077,-1178.757974,0.0002189,4]
[388835458,1759409434088,-296.30613985,0.0002189,4]
[388835459,1759409434099,-1178.89,0.0002189,4]
[388835460,1759409434110,-1396.31373041,0.0002189,4]
[388835461,1759409434120,-493.45,0.0002189,4]
[388835462,1759409434131,-1547.33264574,0.0002189,4]
[388835463,1759409434142,-651.79015195,0.0002189,4]
[388835464,1759409434154,-866.5247247,0.0002189,4]
[388835465,1759409434169,-543.785283,0.0002189,4]
[388835466,1759409434203,-1075.21999539,0.0002189,4]
[388835467,1759409434236,-25474.3114239,0.0002189,4]
[388835468,1759409434247,-82380.29803444,0.0002189,4]
[388835469,1759409434259,-4203.271989,0.0002189,4]
[388835470,1759409434273,-617.1489996,0.0002189,4]
[388835471,1759409434286,-859.24,0.0002189,4]
[388835472,1759409434297,-2509.39391394,0.0002189,4]
[388835473,1759409434340,-977.32299402,0.0002189,4]
[388835474,1759409434354,-512.25234728,0.0002189,4]
[388835475,1759409434463,-2446.14490335,0.0002189,4]
[388835496,1759409438192,-3273.49765974,0.0002189,4]
[388835499,1759409438205,-754.56966197,0.0002189,4]
[388835500,1759409438216,-434.57256022,0.0002189,4]
[388835501,1759409438228,-86871.20642784,0.0002189,4]
[388835502,1759409438256,-4462.80244358,0.0002189,4]
[388835503,1759409438268,-500.0,0.0002189,4]
[388835504,1759409438308,-576.70803547,0.0002189,4]
[388835505,1759409438319,-18342.35627695,0.0002189,4]
[388835506,1759409438366,-5000.00111123,0.0002189,4]
[388835507,1759409438378,-20683.16048425,0.0002189,4]
[388835508,1759409438524,-1258.355,0.0002189,4]
[388835509,1759409438546,-575.6,0.0002189,4]
[388835510,1759409438625,-2539.0,0.0002189,4]
[388835511,1759409438637,-4785.13199616,0.0002189,4]
[388835562,1759409440716,-269.86511757,0.00021808,2]
[388835564,1759409440727,-18417.12542637,0.0002189,4]
[388835565,1759409440740,-4217.54015466,0.0002189,4]
[388835566,1759409440753,-2244.59832752,0.0002189,4]
[388835567,1759409440766,-1740.0911033,0.0002189,4]
[388835568,1759409440779,-1034.0,0.0002189,4]
[388835569,1759409440814,-99134.35154164,0.0002189,4]
[388835570,1759409440834,-778.87817224,0.0002189,4]
[388835571,1759409440913,-349.93773355,0.0002189,4]
[388835572,1759409441047,-347.96845193,0.0002189,4]
[388835573,1759409442764,-524.85,0.00020923,2]
[388835574,1759409442774,-500.0,0.00021845,2]
[388835575,1759409442785,-500.0,0.00021845,2]
[388835576,1759409442795,-390.22268028,0.00021845,2]
[388835577,1759409442804,-423.76420496,0.00021845,2]
[388835578,1759409442824,-76.23579504,0.00021845,2]
[388835579,1759409442835,-500.0,0.00021889,2]
[388835580,1759409442845,-193.43207374,0.00021889,2]
[388835581,1759409442855,-492.93379513,0.00021889,2]
[388835582,1759409442866,-131.66397894,0.00021889,2]
[388835583,1759409442878,-213.82880546,0.00021889,2]
[388835584,1759409442887,-183.9163095,0.00021889,2]
[388835585,1759409442921,-316.0836905,0.00021889,2]
[388835586,1759409442936,-452.8612443,0.00021889,2]
[388835587,1759409442945,-549.05641334,0.00021889,2]
[388835588,1759409442955,-169.03950019,0.00021889,2]
[388835589,1759409442964,-500.0,0.00021889,2]
[388835590,1759409442973,-12.95914058,0.00021889,2]
[388835591,1759409442985,-487.04085942,0.00021889,2]
[388835592,1759409442995,-143074.03082185,0.0002189,4]
[388835604,1759409443382,-2236396.08196346,0.0002189,4]
[388835605,1759409443394,-4271.656,0.0002189,4]
[388835606,1759409443684,-9853.5113487,0.0002189,4]
[388835607,1759409443709,-29402.19467997,0.0002189,4]
[388835608,1759409443720,-313.62008107,0.0002189,4]
[388835609,1759409443735,-180223.70315621,0.0002189,4]
[388835610,1759409443762,-21471.46734621,0.0002189,4]
[388835611,1759409443773,-934.94,0.0002189,4]
[388835613,1759409443793,-40498.1726693,0.0002189,4]
[388835614,1759409443805,-607.399843,0.0002189,4]
[388835615,1759409443817,-4340.72234704,0.0002189,4]
[388835616,1759409443829,-390.3849186,0.0002189,4]
[388835617,1759409443845,-329.555513,0.0002189,4]
[388835618,1759409443870,-872.26117996,0.0002189,4]
[388835851,1759409446489,-2982.5,0.0002189,4]
[388837216,1759409488349,-160.0,0.000183,2]
[388837319,1759409916439,179.33,0.00010405,2]
[388837364,1759410212721,3250.96,0.00022,90]
[388837369,1759410320642,-150.1938001,0.00019701,2]
[388837370,1759410320672,-49.6123998,0.00019701,2]
[388837371,1759410321061,-100.3876002,0.00019701,2]
[388837372,1759410321073,-49.8061999,0.00019701,2]
[388837373,1759410321098,-100.1938001,0.00019701,2]
[388837374,1759410321107,-49.8061999,0.00019701,2]
[388837377,1759410346583,-100.1938001,0.00019701,2]
[388837378,1759410346626,-149.6123998,0.00019701,2]
[388837379,1759410346645,-0.3876002,0.00019701,2]
[388837380,1759410346654,-99.8061999,0.00019701,2]
[388837381,1759410346679,-50.19380011,0.00019701,2]
[388837382,1759410346690,-99.80619989,0.00019701,2]
[388837384,1759410374979,-50.19380011,0.00019701,2]
[388837385,1759410375008,-150.0,0.00019701,2]
[388837386,1759410375257,-50.19380011,0.00019701,2]
[388837387,1759410375269,-99.80619989,0.00019701,2]
[388837388,1759410375279,-50.19380011,0.00019701,2]
[388837389,1759410375291,-99.61239978,0.00019701,2]
[388837390,1759410401384,-0.19380011,0.00019701,2]
[388837391,1759410401411,-150.0,0.00019701,2]
[388837392,1759410401436,-49.61239978,0.00019701,2]
[388837393,1759410401452,-0.19380011,0.00019701,2]
[388837394,1759410401463,-100.19380011,0.00019701,2]
[388837395,1759410401472,-49.80619989,0.00019701,2]
[388837396,1759410401498,-100.19380011,0.00019701,2]
[388837397,1759410401507,-49.80619989,0.00019701,2]
[388837404,1759410440277,-100.19380011,0.00019701,2]
[388837405,1759410440305,-150.0,0.00019701,2]
[388837406,1759410440556,-100.19380011,0.00019701,2]
[388837407,1759410440580,-49.80619989,0.00019701,2]
[388837408,1759410440590,-100.19380011,0.00019701,2]
[388837409,1759410440614,-37.90239978,0.00019701,2]
[388837413,1759410456465,-11.90380011,0.00019701,2]
[388837414,1759410456497,-150.0,0.00019701,2]
[388837415,1759410456528,-150.0,0.00019701,2]
[388837416,1759410456548,-11.90380011,0.00019749,2]
[388837417,1759410456559,-150.0,0.00019749,2]
[388837418,1759410456570,-150.0,0.00019749,2]
[388837419,1759410456582,-1292.49239978,0.00019749,2]
[388837421,1759410484955,-461.71,0.00019749,2]
[388837423,1759410510679,-150.0,0.00019749,2]
[388837424,1759410515444,338.11,0.00024966,120]
[388837529,1759410537714,-165.33,0.00019749,2]
[388837566,1759410564893,164.94831003,0.00021777,60]
[388837582,1759410619489,-633.53999998,0.00019701,2]
[388837616,1759410631463,-2979.24960156,0.00019701,2]
[388837618,1759410631473,-118.56380011,0.00019749,2]
[388837620,1759410631482,-150.0,0.00019797,4]
[388837622,1759410631492,-370.49393606,0.00019847,2]
[388837624,1759410631501,-1102.74662557,0.00019855,2]
[388837626,1759410631510,-150.0,0.00019892,4]
[388837628,1759410631520,-150.0,0.000199,4]
[388837630,1759410631530,-1463.3,0.0001997,2]
[388837632,1759410631539,-338.11,0.00019973,2]
[388837634,1759410631548,-150.0,0.00019987,4]
[388837636,1759410631558,-1200.0,0.00019999,2]
[388837638,1759410631567,-1252.43002487,0.0002,10]
[388837640,1759410631577,-150.0,0.00020014,4]
[388837642,1759410631587,-150.0,0.00020014,4]
[388837644,1759410631596,-300.0,0.00020052,2]
[388837646,1759410631606,-567.69,0.00020053,2]
[388837648,1759410631616,-150.0,0.00020066,4]
[388837650,1759410631626,-150.0,0.00020066,4]
[388837651,1759410631636,-580.44,0.00020072,2]
[388837652,1759410631645,-150.0,0.00020082,4]
[388837653,1759410631655,-150.0,0.00020099,4]
[388837654,1759410631669,-1566.71,0.00020139,2]
[388837655,1759410631679,-150.0,0.00020139,4]
[388837656,1759410631689,-150.0,0.00020139,4]
[388837657,1759410631699,-150.0,0.00020139,4]
[388837658,1759410631709,-150.0,0.00020139,4]
[388837659,1759410631719,-150.0,0.00020139,4]
[388837660,1759410631729,-150.0,0.00020177,4]
[388837661,1759410631739,-150.0,0.00020249,4]
[388837662,1759410631749,-150.0,0.00020272,4]
[388837663,1759410631758,-150.0,0.00020298,4]
[388837664,1759410631773,-150.0,0.00020327,4]
[388837665,1759410631785,-150.0,0.00020327,4]
[388837666,1759410631795,-150.0,0.00020368,4]
[388837667,1759410631805,-1566.71,0.00020413,2]
[388837668,1759410631814,-150.0,0.00020431,4]
[388837669,1759410631824,-150.0,0.00020431,4]
[388837670,1759410631834,-150.0,0.00020431,4]
[388837671,1759410631844,-150.0,0.00020463,4]
[388837672,1759410631854,-150.0,0.00020497,4]
[388837673,1759410631864,-150.0,0.00020558,4]
[388837675,1759410631874,-150.0,0.00020577,4]
[388837677,1759410631884,-150.0,0.00020577,4]
[388837680,1759410631894,-150.0,0.00020577,4]
[388837682,1759410631903,-150.0,0.00020577,4]
[388837684,1759410631913,-150.0,0.00020577,4]
[388837686,1759410631923,-150.0,0.0002064,4]
[388837687,1759410631933,-150.0,0.0002064,4]
[388837690,1759410631943,-150.0,0.00020653,4]
[388837692,1759410631953,-1566.71,0.00020687,2]
[388837694,1759410631963,-150.0,0.00020696,4]
[388837696,1759410631974,-150.0,0.00020748,4]
[388837698,1759410631984,-226.76,0.00020792,2]
[388837699,1759410631993,-150.0,0.00020796,4]
[388837702,1759410632003,-150.0,0.00020796,4]
[388837704,1759410632013,-150.0,0.00020796,4]
[388837706,1759410632023,-150.0,0.00020796,4]
[388837707,1759410632032,-150.0,0.00020796,4]
[388837709,1759410632043,-200.0,0.00020833,2]
[388837711,1759410632052,-150.0,0.00020843,4]
[388837713,1759410632063,-150.0,0.00020895,4]
[388837715,1759410632073,-151.0,0.00020896,2]
[388837717,1759410632084,-154.78,0.00020907,2]
[388837719,1759410632094,-533.74,0.00020907,2]
[388837721,1759410632105,-37428.95,0.00020909,2]
[388837723,1759410632115,-150.0,0.00020939,4]
[388837725,1759410632125,-473.63,0.00020941,2]
[388837727,1759410632135,-150.0,0.00020952,4]
[388837729,1759410632149,-150.0,0.00020952,4]
[388837731,1759410632159,-1566.71,0.00020961,2]
[388837733,1759410632169,-10545.65149596,0.00021,2]
[388837736,1759410632178,-1943.90946158,0.00021,2]
[388837739,1759410632189,-150.0,0.00021015,4]
[388837741,1759410632198,-150.0,0.00021015,4]
[388837743,1759410632207,-150.0,0.00021015,4]
[388837745,1759410632219,-150.0,0.00021015,4]
[388837748,1759410632228,-150.0,0.00021015,4]
[388837750,1759410632238,-150.0,0.00021034,4]
[388837752,1759410632247,-567.69,0.00021056,2]
[388837754,1759410632257,-150.0,0.00021094,4]
[388837757,1759410632276,-150.0,0.00021129,4]
[388837760,1759410632286,-150.0,0.00021161,4]
[388837762,1759410632296,-150.0,0.00021161,4]
[388837764,1759410632306,-150.0,0.00021161,4]
[388837766,1759410632315,-150.0,0.00021224,4]
[388837768,1759410632325,-1566.71,0.00021235,2]
[388837770,1759410632334,-150.0,0.00021265,4]
[388837772,1759410632344,-150.0,0.00021265,4]
[388837774,1759410632353,-162.85232867,0.00021288,2]
[388837776,1759410632363,-150.0,0.00021288,2]
[388837778,1759410632372,-150.0,0.00021293,4]
[388837780,1759410632382,-150.0,0.00021319,4]
[388837782,1759410632391,-800.0,0.00021327,2]
[388837784,1759410632401,-800.0,0.00021327,2]
[388837786,1759410632410,-800.0,0.00021327,2]
[388837788,1759410632419,-800.0,0.00021327,2]
[388837789,1759410632428,-800.0,0.00021327,2]
[388837790,1759410632438,-800.0,0.00021327,2]
[388837791,1759410632447,-800.0,0.00021327,2]
[388837792,1759410632456,-420.0,0.00021327,2]
[388837793,1759410632466,-150.0,0.00021343,4]
[388837794,1759410632475,-684.33771011,0.00021371,2]
[388837795,1759410632485,-2000.0,0.000214,2]
[388837796,1759410632494,-747.23656872,0.000214,2]
[388837797,1759410632504,-150.0,0.00021415,4]
[388837798,1759410632514,-151.0,0.00021444,2]
[388837799,1759410632523,-150.0,0.00021453,4]
[388837800,1759410632533,-150.0,0.00021453,4]
[388837801,1759410632542,-150.0,0.00021453,4]
[388837802,1759410632552,-150.0,0.00021453,4]
[388837803,1759410632562,-150.0,0.00021453,4]
[388837804,1759410632572,-150.0,0.00021492,4]
[388837805,1759410632582,-1566.71,0.00021509,2]
[388837806,1759410632591,-150.0,0.0002151,4]
[388837807,1759410632601,-150.0,0.00021526,4]
[388837808,1759410632610,-150.0,0.00021526,4]
[388837809,1759410632620,-447.59142586,0.00021532,2]
[388837810,1759410632630,-180.47112458,0.00021534,2]
[388837811,1759410632639,-187.1296913,0.00021534,2]
[388837812,1759410632650,-469.00185499,0.00021535,2]
[388837813,1759410632660,-269.8293392,0.00021539,2]
[388837814,1759410632669,-269.8293392,0.00021542,2]
[388837815,1759410632680,-269.8293392,0.00021544,2]
[388837816,1759410632690,-269.8293392,0.00021545,2]
[388837817,1759410632700,-292.69146821,0.0002155,2]
[388837818,1759410632710,-155.13059824,0.00021558,2]
[388837819,1759410632721,-187.1296913,0.00021559,2]
[388837820,1759410632732,-180.47112458,0.00021566,2]
[388837821,1759410632742,-469.00185499,0.00021569,2]
[388837822,1759410632752,-187.1296913,0.00021575,2]
[388837823,1759410632762,-155.13059824,0.00021577,2]
[388837824,1759410632771,-190.91087746,0.00021577,2]
[388837825,1759410632781,-150.0,0.00021578,4]
[388837826,1759410632791,-150.0,0.00021578,4]
[388837827,1759410632800,-580.44444859,0.00021579,2]
[388837828,1759410632814,-292.69146821,0.00021593,2]
[388837829,1759410632823,-2483.25790595,0.00021594,2]
[388837830,1759410632834,-169.63802576,0.00021594,2]
[388837831,1759410632849,-155.13059824,0.00021599,2]
[388837832,1759410632867,-155.13059824,0.000216,2]
[388837833,1759410632877,-2000.0,0.000216,2]
[388837834,1759410632886,-300.0,0.000216,2]
[388837835,1759410632895,-169.63802576,0.00021601,2]
[388837836,1759410632905,-169.63802576,0.00021604,2]
[388837837,1759410632915,-150.0,0.00021605,4]
[388837838,1759410632924,-469.00185499,0.00021609,2]
[388837839,1759410632933,-2056.165009,0.0002161,2]
[388837840,1759410632943,-169.63802576,0.0002161,2]
[388837841,1759410632952,-447.59142586,0.00021611,2]
[388837842,1759410632962,-2483.25790595,0.00021611,2]
[388837843,1759410632971,-2483.25790595,0.00021621,2]
[388837844,1759410632980,-292.69146821,0.00021624,2]
[388837845,1759410632990,-292.69146821,0.00021625,2]
[388837846,1759410632999,-2483.25790595,0.00021628,2]
[388837847,1759410633009,-292.69146821,0.00021635,2]